Workbook

Sheet Model
X1: =MAX($W1:W1)+1 -> 1 | Y1: =MAX($W1:X1)+1 -> 2 | Z1: =MAX($W1:Y1)+1 -> 3 | AA1: =MAX($W1:Z1)+1 -> 4 | AB1: =MAX($W1:AA1)+1 -> 5 | AC1: =MAX($W1:AB1)+1 -> 6 | AD1: =MAX($W1:AC1)+1 -> 7 | AE1: =MAX($W1:AD1)+1 -> 8 | AF1: =MAX($W1:AE1)+1 -> 9 | AG1: =MAX($W1:AF1)+1 -> 10 | AH1: =MAX($W1:AG1)+1 -> 11 | AI1: =MAX($W1:AH1)+1 -> 12 | AJ1: =MAX($W1:AI1)+1 -> 13 | AK1: =MAX($W1:AJ1)+1 -> 14 | AL1: =MAX($W1:AK1)+1 -> 15 | AM1: =MAX($W1:AL1)+1 -> 16 | AN1: =MAX($W1:AM1)+1 -> 17 | AO1: =MAX($W1:AN1)+1 -> 18 | AP1: =MAX($W1:AO1)+1 -> 19 | AQ1: =MAX($W1:AP1)+1 -> 20 | AR1: =MAX($W1:AQ1)+1 -> 21 | AS1: =MAX($W1:AR1)+1 -> 22 | AT1: =MAX($W1:AS1)+1 -> 23 | AU1: =MAX($W1:AT1)+1 -> 24 | AV1: =MAX($W1:AU1)+1 -> 25 | AW1: =MAX($W1:AV1)+1 -> 26 | AX1: =MAX($W1:AW1)+1 -> 27 | AY1: =MAX($W1:AX1)+1 -> 28 | AZ1: =MAX($W1:AY1)+1 -> 29 | BA1: =MAX($W1:AZ1)+1 -> 30 | BB1: =MAX($W1:BA1)+1 -> 31
X2: =COLUMN() -> 24 | Y2: =COLUMN() -> 25 | Z2: =COLUMN() -> 26 | AA2: =COLUMN() -> 27 | AB2: =COLUMN() -> 28 | AC2: =COLUMN() -> 29 | AD2: =COLUMN() -> 30 | AE2: =COLUMN() -> 31 | AF2: =COLUMN() -> 32 | AG2: =COLUMN() -> 33 | AH2: =COLUMN() -> 34 | AI2: =COLUMN() -> 35 | AJ2: =COLUMN() -> 36 | AK2: =COLUMN() -> 37 | AL2: =COLUMN() -> 38 | AM2: =COLUMN() -> 39 | AN2: =COLUMN() -> 40 | AO2: =COLUMN() -> 41 | AP2: =COLUMN() -> 42 | AQ2: =COLUMN() -> 43 | AR2: =COLUMN() -> 44 | AS2: =COLUMN() -> 45 | AT2: =COLUMN() -> 46 | AU2: =COLUMN() -> 47 | AV2: =COLUMN() -> 48 | AW2: =COLUMN() -> 49 | AX2: =COLUMN() -> 50 | AY2: =COLUMN() -> 51 | AZ2: =COLUMN() -> 52 | BA2: =COLUMN() -> 53 | BB2: =COLUMN() -> 54
H4: =Lists!$S$6 -> показатель | M4: =Lists!$S$7 -> ед.изм. | P4: =Lists!$S$8 -> значение | U4: =Lists!$S$9 -> итого | X4: =IF(OR($P$6="",$P$6=0,$P$7="",$P$7=0,$P$8="",$P$7<1),"", IF(X$8="","", IF($P$6=Lists!$I$6,X6, IF($P$6=Lists!$I$7,INT(MONTH(X7)/3)&"кв"&(YEAR(X7)-2000)&"г", IF($P$6=Lists!$I$8,X8&" год", IF($P$6=Lists!$I$9,YEAR(X7)&"г.","")))))) -> 2021-12-01 | Y4: =IF(OR($P$6="",$P$6=0,$P$7="",$P$7=0,$P$8="",$P$7<1),"", IF(Y$8="","", IF($P$6=Lists!$I$6,Y6, IF($P$6=Lists!$I$7,INT(MONTH(Y7)/3)&"кв"&(YEAR(Y7)-2000)&"г", IF($P$6=Lists!$I$8,Y8&" год", IF($P$6=Lists!$I$9,YEAR(Y7)&"г.","")))))) -> 2022-01-01 | Z4: =IF(OR($P$6="",$P$6=0,$P$7="",$P$7=0,$P$8="",$P$7<1),"", IF(Z$8="","", IF($P$6=Lists!$I$6,Z6, IF($P$6=Lists!$I$7,INT(MONTH(Z7)/3)&"кв"&(YEAR(Z7)-2000)&"г", IF($P$6=Lists!$I$8,Z8&" год", IF($P$6=Lists!$I$9,YEAR(Z7)&"г.","")))))) -> 2022-02-01 | AA4: =IF(OR($P$6="",$P$6=0,$P$7="",$P$7=0,$P$8="",$P$7<1),"", IF(AA$8="","", IF($P$6=Lists!$I$6,AA6, IF($P$6=Lists!$I$7,INT(MONTH(AA7)/3)&"кв"&(YEAR(AA7)-2000)&"г", IF($P$6=Lists!$I$8,AA8&" год", IF($P$6=Lists!$I$9,YEAR(AA7)&"г.","")))))) -> 2022-03-01 | AB4: =IF(OR($P$6="",$P$6=0,$P$7="",$P$7=0,$P$8="",$P$7<1),"", IF(AB$8="","", IF($P$6=Lists!$I$6,AB6, IF($P$6=Lists!$I$7,INT(MONTH(AB7)/3)&"кв"&(YEAR(AB7)-2000)&"г", IF($P$6=Lists!$I$8,AB8&" год", IF($P$6=Lists!$I$9,YEAR(AB7)&"г.","")))))) -> 2022-04-01 | AC4: =IF(OR($P$6="",$P$6=0,$P$7="",$P$7=0,$P$8="",$P$7<1),"", IF(AC$8="","", IF($P$6=Lists!$I$6,AC6, IF($P$6=Lists!$I$7,INT(MONTH(AC7)/3)&"кв"&(YEAR(AC7)-2000)&"г", IF($P$6=Lists!$I$8,AC8&" год", IF($P$6=Lists!$I$9,YEAR(AC7)&"г.","")))))) -> 2022-05-01 | AD4: =IF(OR($P$6="",$P$6=0,$P$7="",$P$7=0,$P$8="",$P$7<1),"", IF(AD$8="","", IF($P$6=Lists!$I$6,AD6, IF($P$6=Lists!$I$7,INT(MONTH(AD7)/3)&"кв"&(YEAR(AD7)-2000)&"г", IF($P$6=Lists!$I$8,AD8&" год", IF($P$6=Lists!$I$9,YEAR(AD7)&"г.","")))))) -> 2022-06-01 | AE4: =IF(OR($P$6="",$P$6=0,$P$7="",$P$7=0,$P$8="",$P$7<1),"", IF(AE$8="","", IF($P$6=Lists!$I$6,AE6, IF($P$6=Lists!$I$7,INT(MONTH(AE7)/3)&"кв"&(YEAR(AE7)-2000)&"г", IF($P$6=Lists!$I$8,AE8&" год", IF($P$6=Lists!$I$9,YEAR(AE7)&"г.","")))))) -> 2022-07-01 | AF4: =IF(OR($P$6="",$P$6=0,$P$7="",$P$7=0,$P$8="",$P$7<1),"", IF(AF$8="","", IF($P$6=Lists!$I$6,AF6, IF($P$6=Lists!$I$7,INT(MONTH(AF7)/3)&"кв"&(YEAR(AF7)-2000)&"г", IF($P$6=Lists!$I$8,AF8&" год", IF($P$6=Lists!$I$9,YEAR(AF7)&"г.","")))))) -> 2022-08-01 | AG4: =IF(OR($P$6="",$P$6=0,$P$7="",$P$7=0,$P$8="",$P$7<1),"", IF(AG$8="","", IF($P$6=Lists!$I$6,AG6, IF($P$6=Lists!$I$7,INT(MONTH(AG7)/3)&"кв"&(YEAR(AG7)-2000)&"г", IF($P$6=Lists!$I$8,AG8&" год", IF($P$6=Lists!$I$9,YEAR(AG7)&"г.","")))))) -> 2022-09-01 | AH4: =IF(OR($P$6="",$P$6=0,$P$7="",$P$7=0,$P$8="",$P$7<1),"", IF(AH$8="","", IF($P$6=Lists!$I$6,AH6, IF($P$6=Lists!$I$7,INT(MONTH(AH7)/3)&"кв"&(YEAR(AH7)-2000)&"г", IF($P$6=Lists!$I$8,AH8&" год", IF($P$6=Lists!$I$9,YEAR(AH7)&"г.","")))))) -> 2022-10-01 | AI4: =IF(OR($P$6="",$P$6=0,$P$7="",$P$7=0,$P$8="",$P$7<1),"", IF(AI$8="","", IF($P$6=Lists!$I$6,AI6, IF($P$6=Lists!$I$7,INT(MONTH(AI7)/3)&"кв"&(YEAR(AI7)-2000)&"г", IF($P$6=Lists!$I$8,AI8&" год", IF($P$6=Lists!$I$9,YEAR(AI7)&"г.","")))))) -> 2022-11-01 | AJ4: =IF(OR($P$6="",$P$6=0,$P$7="",$P$7=0,$P$8="",$P$7<1),"", IF(AJ$8="","", IF($P$6=Lists!$I$6,AJ6, IF($P$6=Lists!$I$7,INT(MONTH(AJ7)/3)&"кв"&(YEAR(AJ7)-2000)&"г", IF($P$6=Lists!$I$8,AJ8&" год", IF($P$6=Lists!$I$9,YEAR(AJ7)&"г.","")))))) -> 2022-12-01 | AK4: =IF(OR($P$6="",$P$6=0,$P$7="",$P$7=0,$P$8="",$P$7<1),"", IF(AK$8="","", IF($P$6=Lists!$I$6,AK6, IF($P$6=Lists!$I$7,INT(MONTH(AK7)/3)&"кв"&(YEAR(AK7)-2000)&"г", IF($P$6=Lists!$I$8,AK8&" год", IF($P$6=Lists!$I$9,YEAR(AK7)&"г.","")))))) -> 2023-01-01 | AL4: =IF(OR($P$6="",$P$6=0,$P$7="",$P$7=0,$P$8="",$P$7<1),"", IF(AL$8="","", IF($P$6=Lists!$I$6,AL6, IF($P$6=Lists!$I$7,INT(MONTH(AL7)/3)&"кв"&(YEAR(AL7)-2000)&"г", IF($P$6=Lists!$I$8,AL8&" год", IF($P$6=Lists!$I$9,YEAR(AL7)&"г.","")))))) -> 2023-02-01 | AM4: =IF(OR($P$6="",$P$6=0,$P$7="",$P$7=0,$P$8="",$P$7<1),"", IF(AM$8="","", IF($P$6=Lists!$I$6,AM6, IF($P$6=Lists!$I$7,INT(MONTH(AM7)/3)&"кв"&(YEAR(AM7)-2000)&"г", IF($P$6=Lists!$I$8,AM8&" год", IF($P$6=Lists!$I$9,YEAR(AM7)&"г.","")))))) -> 2023-03-01 | AN4: =IF(OR($P$6="",$P$6=0,$P$7="",$P$7=0,$P$8="",$P$7<1),"", IF(AN$8="","", IF($P$6=Lists!$I$6,AN6, IF($P$6=Lists!$I$7,INT(MONTH(AN7)/3)&"кв"&(YEAR(AN7)-2000)&"г", IF($P$6=Lists!$I$8,AN8&" год", IF($P$6=Lists!$I$9,YEAR(AN7)&"г.","")))))) -> 2023-04-01 | AO4: =IF(OR($P$6="",$P$6=0,$P$7="",$P$7=0,$P$8="",$P$7<1),"", IF(AO$8="","", IF($P$6=Lists!$I$6,AO6, IF($P$6=Lists!$I$7,INT(MONTH(AO7)/3)&"кв"&(YEAR(AO7)-2000)&"г", IF($P$6=Lists!$I$8,AO8&" год", IF($P$6=Lists!$I$9,YEAR(AO7)&"г.","")))))) -> 2023-05-01 | AP4: =IF(OR($P$6="",$P$6=0,$P$7="",$P$7=0,$P$8="",$P$7<1),"", IF(AP$8="","", IF($P$6=Lists!$I$6,AP6, IF($P$6=Lists!$I$7,INT(MONTH(AP7)/3)&"кв"&(YEAR(AP7)-2000)&"г", IF($P$6=Lists!$I$8,AP8&" год", IF($P$6=Lists!$I$9,YEAR(AP7)&"г.","")))))) -> 2023-06-01 | AQ4: =IF(OR($P$6="",$P$6=0,$P$7="",$P$7=0,$P$8="",$P$7<1),"", IF(AQ$8="","", IF($P$6=Lists!$I$6,AQ6, IF($P$6=Lists!$I$7,INT(MONTH(AQ7)/3)&"кв"&(YEAR(AQ7)-2000)&"г", IF($P$6=Lists!$I$8,AQ8&" год", IF($P$6=Lists!$I$9,YEAR(AQ7)&"г.","")))))) -> 2023-07-01 | AR4: =IF(OR($P$6="",$P$6=0,$P$7="",$P$7=0,$P$8="",$P$7<1),"", IF(AR$8="","", IF($P$6=Lists!$I$6,AR6, IF($P$6=Lists!$I$7,INT(MONTH(AR7)/3)&"кв"&(YEAR(AR7)-2000)&"г", IF($P$6=Lists!$I$8,AR8&" год", IF($P$6=Lists!$I$9,YEAR(AR7)&"г.","")))))) -> 2023-08-01 | AS4: =IF(OR($P$6="",$P$6=0,$P$7="",$P$7=0,$P$8="",$P$7<1),"", IF(AS$8="","", IF($P$6=Lists!$I$6,AS6, IF($P$6=Lists!$I$7,INT(MONTH(AS7)/3)&"кв"&(YEAR(AS7)-2000)&"г", IF($P$6=Lists!$I$8,AS8&" год", IF($P$6=Lists!$I$9,YEAR(AS7)&"г.","")))))) -> 2023-09-01 | AT4: =IF(OR($P$6="",$P$6=0,$P$7="",$P$7=0,$P$8="",$P$7<1),"", IF(AT$8="","", IF($P$6=Lists!$I$6,AT6, IF($P$6=Lists!$I$7,INT(MONTH(AT7)/3)&"кв"&(YEAR(AT7)-2000)&"г", IF($P$6=Lists!$I$8,AT8&" год", IF($P$6=Lists!$I$9,YEAR(AT7)&"г.","")))))) -> 2023-10-01 | AU4: =IF(OR($P$6="",$P$6=0,$P$7="",$P$7=0,$P$8="",$P$7<1),"", IF(AU$8="","", IF($P$6=Lists!$I$6,AU6, IF($P$6=Lists!$I$7,INT(MONTH(AU7)/3)&"кв"&(YEAR(AU7)-2000)&"г", IF($P$6=Lists!$I$8,AU8&" год", IF($P$6=Lists!$I$9,YEAR(AU7)&"г.","")))))) -> 2023-11-01 | AV4: =IF(OR($P$6="",$P$6=0,$P$7="",$P$7=0,$P$8="",$P$7<1),"", IF(AV$8="","", IF($P$6=Lists!$I$6,AV6, IF($P$6=Lists!$I$7,INT(MONTH(AV7)/3)&"кв"&(YEAR(AV7)-2000)&"г", IF($P$6=Lists!$I$8,AV8&" год", IF($P$6=Lists!$I$9,YEAR(AV7)&"г.","")))))) ->  | AW4: =IF(OR($P$6="",$P$6=0,$P$7="",$P$7=0,$P$8="",$P$7<1),"", IF(AW$8="","", IF($P$6=Lists!$I$6,AW6, IF($P$6=Lists!$I$7,INT(MONTH(AW7)/3)&"кв"&(YEAR(AW7)-2000)&"г", IF($P$6=Lists!$I$8,AW8&" год", IF($P$6=Lists!$I$9,YEAR(AW7)&"г.","")))))) ->  | AX4: =IF(OR($P$6="",$P$6=0,$P$7="",$P$7=0,$P$8="",$P$7<1),"", IF(AX$8="","", IF($P$6=Lists!$I$6,AX6, IF($P$6=Lists!$I$7,INT(MONTH(AX7)/3)&"кв"&(YEAR(AX7)-2000)&"г", IF($P$6=Lists!$I$8,AX8&" год", IF($P$6=Lists!$I$9,YEAR(AX7)&"г.","")))))) ->  | AY4: =IF(OR($P$6="",$P$6=0,$P$7="",$P$7=0,$P$8="",$P$7<1),"", IF(AY$8="","", IF($P$6=Lists!$I$6,AY6, IF($P$6=Lists!$I$7,INT(MONTH(AY7)/3)&"кв"&(YEAR(AY7)-2000)&"г", IF($P$6=Lists!$I$8,AY8&" год", IF($P$6=Lists!$I$9,YEAR(AY7)&"г.","")))))) ->  | AZ4: =IF(OR($P$6="",$P$6=0,$P$7="",$P$7=0,$P$8="",$P$7<1),"", IF(AZ$8="","", IF($P$6=Lists!$I$6,AZ6, IF($P$6=Lists!$I$7,INT(MONTH(AZ7)/3)&"кв"&(YEAR(AZ7)-2000)&"г", IF($P$6=Lists!$I$8,AZ8&" год", IF($P$6=Lists!$I$9,YEAR(AZ7)&"г.","")))))) ->  | BA4: =IF(OR($P$6="",$P$6=0,$P$7="",$P$7=0,$P$8="",$P$7<1),"", IF(BA$8="","", IF($P$6=Lists!$I$6,BA6, IF($P$6=Lists!$I$7,INT(MONTH(BA7)/3)&"кв"&(YEAR(BA7)-2000)&"г", IF($P$6=Lists!$I$8,BA8&" год", IF($P$6=Lists!$I$9,YEAR(BA7)&"г.","")))))) ->  | BB4: =IF(OR($P$6="",$P$6=0,$P$7="",$P$7=0,$P$8="",$P$7<1),"", IF(BB$8="","", IF($P$6=Lists!$I$6,BB6, IF($P$6=Lists!$I$7,INT(MONTH(BB7)/3)&"кв"&(YEAR(BB7)-2000)&"г", IF($P$6=Lists!$I$8,BB8&" год", IF($P$6=Lists!$I$9,YEAR(BB7)&"г.","")))))) -> 
B6: =ROW() -> 6 | E6: =IF(E4=1,"ENG","РУС") -> РУС | H6: =I6 -> минимальный период расчетов | I6: =Lists!$I$4 -> минимальный период расчетов | M6: тип периода | O6: * | P6: месяц | Q6: ^ | U6: =X6 -> 2021-12-01 | X6: =IF(OR($P$6="",$P$6=0,$P$7="",$P$7=0,$P$8="",$P$7<1),"", IF(X$8="","", IF(X$8=1,EOMONTH($P$7,-1)+1,W7+1))) -> 2021-12-01 | Y6: =IF(OR($P$6="",$P$6=0,$P$7="",$P$7=0,$P$8="",$P$7<1),"", IF(Y$8="","", IF(Y$8=1,EOMONTH($P$7,-1)+1,X7+1))) -> 2022-01-01 | Z6: 2022-02-01 | AA6: 2022-03-01 | AB6: 2022-04-01 | AC6: 2022-05-01 | AD6: 2022-06-01 | AE6: =IF(OR($P$6="",$P$6=0,$P$7="",$P$7=0,$P$8="",$P$7<1),"", IF(AE$8="","", IF(AE$8=1,EOMONTH($P$7,-1)+1,AD7+1))) -> 2022-07-01 | AF6: =IF(OR($P$6="",$P$6=0,$P$7="",$P$7=0,$P$8="",$P$7<1),"", IF(AF$8="","", IF(AF$8=1,EOMONTH($P$7,-1)+1,AE7+1))) -> 2022-08-01 | AG6: =IF(OR($P$6="",$P$6=0,$P$7="",$P$7=0,$P$8="",$P$7<1),"", IF(AG$8="","", IF(AG$8=1,EOMONTH($P$7,-1)+1,AF7+1))) -> 2022-09-01 | AH6: =IF(OR($P$6="",$P$6=0,$P$7="",$P$7=0,$P$8="",$P$7<1),"", IF(AH$8="","", IF(AH$8=1,EOMONTH($P$7,-1)+1,AG7+1))) -> 2022-10-01 | AI6: =IF(OR($P$6="",$P$6=0,$P$7="",$P$7=0,$P$8="",$P$7<1),"", IF(AI$8="","", IF(AI$8=1,EOMONTH($P$7,-1)+1,AH7+1))) -> 2022-11-01 | AJ6: =IF(OR($P$6="",$P$6=0,$P$7="",$P$7=0,$P$8="",$P$7<1),"", IF(AJ$8="","", IF(AJ$8=1,EOMONTH($P$7,-1)+1,AI7+1))) -> 2022-12-01 | AK6: =IF(OR($P$6="",$P$6=0,$P$7="",$P$7=0,$P$8="",$P$7<1),"", IF(AK$8="","", IF(AK$8=1,EOMONTH($P$7,-1)+1,AJ7+1))) -> 2023-01-01 | AL6: =IF(OR($P$6="",$P$6=0,$P$7="",$P$7=0,$P$8="",$P$7<1),"", IF(AL$8="","", IF(AL$8=1,EOMONTH($P$7,-1)+1,AK7+1))) -> 2023-02-01 | AM6: =IF(OR($P$6="",$P$6=0,$P$7="",$P$7=0,$P$8="",$P$7<1),"", IF(AM$8="","", IF(AM$8=1,EOMONTH($P$7,-1)+1,AL7+1))) -> 2023-03-01 | AN6: =IF(OR($P$6="",$P$6=0,$P$7="",$P$7=0,$P$8="",$P$7<1),"", IF(AN$8="","", IF(AN$8=1,EOMONTH($P$7,-1)+1,AM7+1))) -> 2023-04-01 | AO6: =IF(OR($P$6="",$P$6=0,$P$7="",$P$7=0,$P$8="",$P$7<1),"", IF(AO$8="","", IF(AO$8=1,EOMONTH($P$7,-1)+1,AN7+1))) -> 2023-05-01 | AP6: =IF(OR($P$6="",$P$6=0,$P$7="",$P$7=0,$P$8="",$P$7<1),"", IF(AP$8="","", IF(AP$8=1,EOMONTH($P$7,-1)+1,AO7+1))) -> 2023-06-01 | AQ6: =IF(OR($P$6="",$P$6=0,$P$7="",$P$7=0,$P$8="",$P$7<1),"", IF(AQ$8="","", IF(AQ$8=1,EOMONTH($P$7,-1)+1,AP7+1))) -> 2023-07-01 | AR6: =IF(OR($P$6="",$P$6=0,$P$7="",$P$7=0,$P$8="",$P$7<1),"", IF(AR$8="","", IF(AR$8=1,EOMONTH($P$7,-1)+1,AQ7+1))) -> 2023-08-01 | AS6: =IF(OR($P$6="",$P$6=0,$P$7="",$P$7=0,$P$8="",$P$7<1),"", IF(AS$8="","", IF(AS$8=1,EOMONTH($P$7,-1)+1,AR7+1))) -> 2023-09-01 | AT6: =IF(OR($P$6="",$P$6=0,$P$7="",$P$7=0,$P$8="",$P$7<1),"", IF(AT$8="","", IF(AT$8=1,EOMONTH($P$7,-1)+1,AS7+1))) -> 2023-10-01 | AU6: =IF(OR($P$6="",$P$6=0,$P$7="",$P$7=0,$P$8="",$P$7<1),"", IF(AU$8="","", IF(AU$8=1,EOMONTH($P$7,-1)+1,AT7+1))) -> 2023-11-01 | AV6: =IF(OR($P$6="",$P$6=0,$P$7="",$P$7=0,$P$8="",$P$7<1),"", IF(AV$8="","", IF(AV$8=1,EOMONTH($P$7,-1)+1,AU7+1))) ->  | AW6: =IF(OR($P$6="",$P$6=0,$P$7="",$P$7=0,$P$8="",$P$7<1),"", IF(AW$8="","", IF(AW$8=1,EOMONTH($P$7,-1)+1,AV7+1))) ->  | AX6: =IF(OR($P$6="",$P$6=0,$P$7="",$P$7=0,$P$8="",$P$7<1),"", IF(AX$8="","", IF(AX$8=1,EOMONTH($P$7,-1)+1,AW7+1))) ->  | AY6: =IF(OR($P$6="",$P$6=0,$P$7="",$P$7=0,$P$8="",$P$7<1),"", IF(AY$8="","", IF(AY$8=1,EOMONTH($P$7,-1)+1,AX7+1))) ->  | AZ6: =IF(OR($P$6="",$P$6=0,$P$7="",$P$7=0,$P$8="",$P$7<1),"", IF(AZ$8="","", IF(AZ$8=1,EOMONTH($P$7,-1)+1,AY7+1))) ->  | BA6: =IF(OR($P$6="",$P$6=0,$P$7="",$P$7=0,$P$8="",$P$7<1),"", IF(BA$8="","", IF(BA$8=1,EOMONTH($P$7,-1)+1,AZ7+1))) ->  | BB6: =IF(OR($P$6="",$P$6=0,$P$7="",$P$7=0,$P$8="",$P$7<1),"", IF(BB$8="","", IF(BB$8=1,EOMONTH($P$7,-1)+1,BA7+1))) -> 
B7: =ROW() -> 7 | H7: =I7 -> старт моделирования | I7: =Lists!$N$4 -> старт моделирования | M7: месяц | O7: * | P7: 2021-12-01 | Q7: ^ | U7: =MAX(INDIRECT(ADDRESS($B7,X$2)&":"&ADDRESS($B7,MAX($2:$2)))) -> 2023-11-30 | X7: =IF(OR($P$6="",$P$6=0,$P$7="",$P$7=0,$P$8="",$P$7<1),"", IF(X$8="","", IF($P$6=Lists!$I$6,EOMONTH(X6,0), IF($P$6=Lists!$I$7,EOMONTH(X6,2-(MONTH(X6)-1-3*INT((MONTH(X6)-1)/3))), IF($P$6=Lists!$I$8,EOMONTH(X6,11), IF($P$6=Lists!$I$9,EOMONTH(X6,12-MONTH(X6)),"")))))) -> 2021-12-31 | Y7: =IF(OR($P$6="",$P$6=0,$P$7="",$P$7=0,$P$8="",$P$7<1),"", IF(Y$8="","", IF($P$6=Lists!$I$6,EOMONTH(Y6,0), IF($P$6=Lists!$I$7,EOMONTH(Y6,2-(MONTH(Y6)-1-3*INT((MONTH(Y6)-1)/3))), IF($P$6=Lists!$I$8,EOMONTH(Y6,11), IF($P$6=Lists!$I$9,EOMONTH(Y6,12-MONTH(Y6)),"")))))) -> 2022-01-31 | Z7: =IF(OR($P$6="",$P$6=0,$P$7="",$P$7=0,$P$8="",$P$7<1),"", IF(Z$8="","", IF($P$6=Lists!$I$6,EOMONTH(Z6,0), IF($P$6=Lists!$I$7,EOMONTH(Z6,2-(MONTH(Z6)-1-3*INT((MONTH(Z6)-1)/3))), IF($P$6=Lists!$I$8,EOMONTH(Z6,11), IF($P$6=Lists!$I$9,EOMONTH(Z6,12-MONTH(Z6)),"")))))) -> 2022-02-28 | AA7: =IF(OR($P$6="",$P$6=0,$P$7="",$P$7=0,$P$8="",$P$7<1),"", IF(AA$8="","", IF($P$6=Lists!$I$6,EOMONTH(AA6,0), IF($P$6=Lists!$I$7,EOMONTH(AA6,2-(MONTH(AA6)-1-3*INT((MONTH(AA6)-1)/3))), IF($P$6=Lists!$I$8,EOMONTH(AA6,11), IF($P$6=Lists!$I$9,EOMONTH(AA6,12-MONTH(AA6)),"")))))) -> 2022-03-31 | AB7: =IF(OR($P$6="",$P$6=0,$P$7="",$P$7=0,$P$8="",$P$7<1),"", IF(AB$8="","", IF($P$6=Lists!$I$6,EOMONTH(AB6,0), IF($P$6=Lists!$I$7,EOMONTH(AB6,2-(MONTH(AB6)-1-3*INT((MONTH(AB6)-1)/3))), IF($P$6=Lists!$I$8,EOMONTH(AB6,11), IF($P$6=Lists!$I$9,EOMONTH(AB6,12-MONTH(AB6)),"")))))) -> 2022-04-30 | AC7: =IF(OR($P$6="",$P$6=0,$P$7="",$P$7=0,$P$8="",$P$7<1),"", IF(AC$8="","", IF($P$6=Lists!$I$6,EOMONTH(AC6,0), IF($P$6=Lists!$I$7,EOMONTH(AC6,2-(MONTH(AC6)-1-3*INT((MONTH(AC6)-1)/3))), IF($P$6=Lists!$I$8,EOMONTH(AC6,11), IF($P$6=Lists!$I$9,EOMONTH(AC6,12-MONTH(AC6)),"")))))) -> 2022-05-31 | AD7: =IF(OR($P$6="",$P$6=0,$P$7="",$P$7=0,$P$8="",$P$7<1),"", IF(AD$8="","", IF($P$6=Lists!$I$6,EOMONTH(AD6,0), IF($P$6=Lists!$I$7,EOMONTH(AD6,2-(MONTH(AD6)-1-3*INT((MONTH(AD6)-1)/3))), IF($P$6=Lists!$I$8,EOMONTH(AD6,11), IF($P$6=Lists!$I$9,EOMONTH(AD6,12-MONTH(AD6)),"")))))) -> 2022-06-30 | AE7: =IF(OR($P$6="",$P$6=0,$P$7="",$P$7=0,$P$8="",$P$7<1),"", IF(AE$8="","", IF($P$6=Lists!$I$6,EOMONTH(AE6,0), IF($P$6=Lists!$I$7,EOMONTH(AE6,2-(MONTH(AE6)-1-3*INT((MONTH(AE6)-1)/3))), IF($P$6=Lists!$I$8,EOMONTH(AE6,11), IF($P$6=Lists!$I$9,EOMONTH(AE6,12-MONTH(AE6)),"")))))) -> 2022-07-31 | AF7: =IF(OR($P$6="",$P$6=0,$P$7="",$P$7=0,$P$8="",$P$7<1),"", IF(AF$8="","", IF($P$6=Lists!$I$6,EOMONTH(AF6,0), IF($P$6=Lists!$I$7,EOMONTH(AF6,2-(MONTH(AF6)-1-3*INT((MONTH(AF6)-1)/3))), IF($P$6=Lists!$I$8,EOMONTH(AF6,11), IF($P$6=Lists!$I$9,EOMONTH(AF6,12-MONTH(AF6)),"")))))) -> 2022-08-31 | AG7: =IF(OR($P$6="",$P$6=0,$P$7="",$P$7=0,$P$8="",$P$7<1),"", IF(AG$8="","", IF($P$6=Lists!$I$6,EOMONTH(AG6,0), IF($P$6=Lists!$I$7,EOMONTH(AG6,2-(MONTH(AG6)-1-3*INT((MONTH(AG6)-1)/3))), IF($P$6=Lists!$I$8,EOMONTH(AG6,11), IF($P$6=Lists!$I$9,EOMONTH(AG6,12-MONTH(AG6)),"")))))) -> 2022-09-30 | AH7: =IF(OR($P$6="",$P$6=0,$P$7="",$P$7=0,$P$8="",$P$7<1),"", IF(AH$8="","", IF($P$6=Lists!$I$6,EOMONTH(AH6,0), IF($P$6=Lists!$I$7,EOMONTH(AH6,2-(MONTH(AH6)-1-3*INT((MONTH(AH6)-1)/3))), IF($P$6=Lists!$I$8,EOMONTH(AH6,11), IF($P$6=Lists!$I$9,EOMONTH(AH6,12-MONTH(AH6)),"")))))) -> 2022-10-31 | AI7: =IF(OR($P$6="",$P$6=0,$P$7="",$P$7=0,$P$8="",$P$7<1),"", IF(AI$8="","", IF($P$6=Lists!$I$6,EOMONTH(AI6,0), IF($P$6=Lists!$I$7,EOMONTH(AI6,2-(MONTH(AI6)-1-3*INT((MONTH(AI6)-1)/3))), IF($P$6=Lists!$I$8,EOMONTH(AI6,11), IF($P$6=Lists!$I$9,EOMONTH(AI6,12-MONTH(AI6)),"")))))) -> 2022-11-30 | AJ7: =IF(OR($P$6="",$P$6=0,$P$7="",$P$7=0,$P$8="",$P$7<1),"", IF(AJ$8="","", IF($P$6=Lists!$I$6,EOMONTH(AJ6,0), IF($P$6=Lists!$I$7,EOMONTH(AJ6,2-(MONTH(AJ6)-1-3*INT((MONTH(AJ6)-1)/3))), IF($P$6=Lists!$I$8,EOMONTH(AJ6,11), IF($P$6=Lists!$I$9,EOMONTH(AJ6,12-MONTH(AJ6)),"")))))) -> 2022-12-31 | AK7: =IF(OR($P$6="",$P$6=0,$P$7="",$P$7=0,$P$8="",$P$7<1),"", IF(AK$8="","", IF($P$6=Lists!$I$6,EOMONTH(AK6,0), IF($P$6=Lists!$I$7,EOMONTH(AK6,2-(MONTH(AK6)-1-3*INT((MONTH(AK6)-1)/3))), IF($P$6=Lists!$I$8,EOMONTH(AK6,11), IF($P$6=Lists!$I$9,EOMONTH(AK6,12-MONTH(AK6)),"")))))) -> 2023-01-31 | AL7: =IF(OR($P$6="",$P$6=0,$P$7="",$P$7=0,$P$8="",$P$7<1),"", IF(AL$8="","", IF($P$6=Lists!$I$6,EOMONTH(AL6,0), IF($P$6=Lists!$I$7,EOMONTH(AL6,2-(MONTH(AL6)-1-3*INT((MONTH(AL6)-1)/3))), IF($P$6=Lists!$I$8,EOMONTH(AL6,11), IF($P$6=Lists!$I$9,EOMONTH(AL6,12-MONTH(AL6)),"")))))) -> 2023-02-28 | AM7: =IF(OR($P$6="",$P$6=0,$P$7="",$P$7=0,$P$8="",$P$7<1),"", IF(AM$8="","", IF($P$6=Lists!$I$6,EOMONTH(AM6,0), IF($P$6=Lists!$I$7,EOMONTH(AM6,2-(MONTH(AM6)-1-3*INT((MONTH(AM6)-1)/3))), IF($P$6=Lists!$I$8,EOMONTH(AM6,11), IF($P$6=Lists!$I$9,EOMONTH(AM6,12-MONTH(AM6)),"")))))) -> 2023-03-31 | AN7: =IF(OR($P$6="",$P$6=0,$P$7="",$P$7=0,$P$8="",$P$7<1),"", IF(AN$8="","", IF($P$6=Lists!$I$6,EOMONTH(AN6,0), IF($P$6=Lists!$I$7,EOMONTH(AN6,2-(MONTH(AN6)-1-3*INT((MONTH(AN6)-1)/3))), IF($P$6=Lists!$I$8,EOMONTH(AN6,11), IF($P$6=Lists!$I$9,EOMONTH(AN6,12-MONTH(AN6)),"")))))) -> 2023-04-30 | AO7: =IF(OR($P$6="",$P$6=0,$P$7="",$P$7=0,$P$8="",$P$7<1),"", IF(AO$8="","", IF($P$6=Lists!$I$6,EOMONTH(AO6,0), IF($P$6=Lists!$I$7,EOMONTH(AO6,2-(MONTH(AO6)-1-3*INT((MONTH(AO6)-1)/3))), IF($P$6=Lists!$I$8,EOMONTH(AO6,11), IF($P$6=Lists!$I$9,EOMONTH(AO6,12-MONTH(AO6)),"")))))) -> 2023-05-31 | AP7: =IF(OR($P$6="",$P$6=0,$P$7="",$P$7=0,$P$8="",$P$7<1),"", IF(AP$8="","", IF($P$6=Lists!$I$6,EOMONTH(AP6,0), IF($P$6=Lists!$I$7,EOMONTH(AP6,2-(MONTH(AP6)-1-3*INT((MONTH(AP6)-1)/3))), IF($P$6=Lists!$I$8,EOMONTH(AP6,11), IF($P$6=Lists!$I$9,EOMONTH(AP6,12-MONTH(AP6)),"")))))) -> 2023-06-30 | AQ7: =IF(OR($P$6="",$P$6=0,$P$7="",$P$7=0,$P$8="",$P$7<1),"", IF(AQ$8="","", IF($P$6=Lists!$I$6,EOMONTH(AQ6,0), IF($P$6=Lists!$I$7,EOMONTH(AQ6,2-(MONTH(AQ6)-1-3*INT((MONTH(AQ6)-1)/3))), IF($P$6=Lists!$I$8,EOMONTH(AQ6,11), IF($P$6=Lists!$I$9,EOMONTH(AQ6,12-MONTH(AQ6)),"")))))) -> 2023-07-31 | AR7: =IF(OR($P$6="",$P$6=0,$P$7="",$P$7=0,$P$8="",$P$7<1),"", IF(AR$8="","", IF($P$6=Lists!$I$6,EOMONTH(AR6,0), IF($P$6=Lists!$I$7,EOMONTH(AR6,2-(MONTH(AR6)-1-3*INT((MONTH(AR6)-1)/3))), IF($P$6=Lists!$I$8,EOMONTH(AR6,11), IF($P$6=Lists!$I$9,EOMONTH(AR6,12-MONTH(AR6)),"")))))) -> 2023-08-31 | AS7: =IF(OR($P$6="",$P$6=0,$P$7="",$P$7=0,$P$8="",$P$7<1),"", IF(AS$8="","", IF($P$6=Lists!$I$6,EOMONTH(AS6,0), IF($P$6=Lists!$I$7,EOMONTH(AS6,2-(MONTH(AS6)-1-3*INT((MONTH(AS6)-1)/3))), IF($P$6=Lists!$I$8,EOMONTH(AS6,11), IF($P$6=Lists!$I$9,EOMONTH(AS6,12-MONTH(AS6)),"")))))) -> 2023-09-30 | AT7: =IF(OR($P$6="",$P$6=0,$P$7="",$P$7=0,$P$8="",$P$7<1),"", IF(AT$8="","", IF($P$6=Lists!$I$6,EOMONTH(AT6,0), IF($P$6=Lists!$I$7,EOMONTH(AT6,2-(MONTH(AT6)-1-3*INT((MONTH(AT6)-1)/3))), IF($P$6=Lists!$I$8,EOMONTH(AT6,11), IF($P$6=Lists!$I$9,EOMONTH(AT6,12-MONTH(AT6)),"")))))) -> 2023-10-31 | AU7: =IF(OR($P$6="",$P$6=0,$P$7="",$P$7=0,$P$8="",$P$7<1),"", IF(AU$8="","", IF($P$6=Lists!$I$6,EOMONTH(AU6,0), IF($P$6=Lists!$I$7,EOMONTH(AU6,2-(MONTH(AU6)-1-3*INT((MONTH(AU6)-1)/3))), IF($P$6=Lists!$I$8,EOMONTH(AU6,11), IF($P$6=Lists!$I$9,EOMONTH(AU6,12-MONTH(AU6)),"")))))) -> 2023-11-30 | AV7: =IF(OR($P$6="",$P$6=0,$P$7="",$P$7=0,$P$8="",$P$7<1),"", IF(AV$8="","", IF($P$6=Lists!$I$6,EOMONTH(AV6,0), IF($P$6=Lists!$I$7,EOMONTH(AV6,2-(MONTH(AV6)-1-3*INT((MONTH(AV6)-1)/3))), IF($P$6=Lists!$I$8,EOMONTH(AV6,11), IF($P$6=Lists!$I$9,EOMONTH(AV6,12-MONTH(AV6)),"")))))) ->  | AW7: =IF(OR($P$6="",$P$6=0,$P$7="",$P$7=0,$P$8="",$P$7<1),"", IF(AW$8="","", IF($P$6=Lists!$I$6,EOMONTH(AW6,0), IF($P$6=Lists!$I$7,EOMONTH(AW6,2-(MONTH(AW6)-1-3*INT((MONTH(AW6)-1)/3))), IF($P$6=Lists!$I$8,EOMONTH(AW6,11), IF($P$6=Lists!$I$9,EOMONTH(AW6,12-MONTH(AW6)),"")))))) ->  | AX7: =IF(OR($P$6="",$P$6=0,$P$7="",$P$7=0,$P$8="",$P$7<1),"", IF(AX$8="","", IF($P$6=Lists!$I$6,EOMONTH(AX6,0), IF($P$6=Lists!$I$7,EOMONTH(AX6,2-(MONTH(AX6)-1-3*INT((MONTH(AX6)-1)/3))), IF($P$6=Lists!$I$8,EOMONTH(AX6,11), IF($P$6=Lists!$I$9,EOMONTH(AX6,12-MONTH(AX6)),"")))))) ->  | AY7: =IF(OR($P$6="",$P$6=0,$P$7="",$P$7=0,$P$8="",$P$7<1),"", IF(AY$8="","", IF($P$6=Lists!$I$6,EOMONTH(AY6,0), IF($P$6=Lists!$I$7,EOMONTH(AY6,2-(MONTH(AY6)-1-3*INT((MONTH(AY6)-1)/3))), IF($P$6=Lists!$I$8,EOMONTH(AY6,11), IF($P$6=Lists!$I$9,EOMONTH(AY6,12-MONTH(AY6)),"")))))) ->  | AZ7: =IF(OR($P$6="",$P$6=0,$P$7="",$P$7=0,$P$8="",$P$7<1),"", IF(AZ$8="","", IF($P$6=Lists!$I$6,EOMONTH(AZ6,0), IF($P$6=Lists!$I$7,EOMONTH(AZ6,2-(MONTH(AZ6)-1-3*INT((MONTH(AZ6)-1)/3))), IF($P$6=Lists!$I$8,EOMONTH(AZ6,11), IF($P$6=Lists!$I$9,EOMONTH(AZ6,12-MONTH(AZ6)),"")))))) ->  | BA7: =IF(OR($P$6="",$P$6=0,$P$7="",$P$7=0,$P$8="",$P$7<1),"", IF(BA$8="","", IF($P$6=Lists!$I$6,EOMONTH(BA6,0), IF($P$6=Lists!$I$7,EOMONTH(BA6,2-(MONTH(BA6)-1-3*INT((MONTH(BA6)-1)/3))), IF($P$6=Lists!$I$8,EOMONTH(BA6,11), IF($P$6=Lists!$I$9,EOMONTH(BA6,12-MONTH(BA6)),"")))))) ->  | BB7: =IF(OR($P$6="",$P$6=0,$P$7="",$P$7=0,$P$8="",$P$7<1),"", IF(BB$8="","", IF($P$6=Lists!$I$6,EOMONTH(BB6,0), IF($P$6=Lists!$I$7,EOMONTH(BB6,2-(MONTH(BB6)-1-3*INT((MONTH(BB6)-1)/3))), IF($P$6=Lists!$I$8,EOMONTH(BB6,11), IF($P$6=Lists!$I$9,EOMONTH(BB6,12-MONTH(BB6)),"")))))) -> 
B8: =ROW() -> 8 | H8: горизонт моделирования | I8: горизонт моделирования | M8: кол-во пер. | O8: * | P8: 24 | U8: =MAX(INDIRECT(ADDRESS($B8,X$2)&":"&ADDRESS($B8,MAX($2:$2)))) -> 24 | X8: =IF(OR($P$6="",$P$6=0,$P$7="",$P$7=0,$P$8="",$P$7<1),"", IF(MAX($W8:W8)+1>$P$8,"",MAX($W8:W8)+1)) -> 1 | Y8: =IF(OR($P$6="",$P$6=0,$P$7="",$P$7=0,$P$8="",$P$7<1),"", IF(MAX($W8:X8)+1>$P$8,"",MAX($W8:X8)+1)) -> 2 | Z8: =IF(OR($P$6="",$P$6=0,$P$7="",$P$7=0,$P$8="",$P$7<1),"", IF(MAX($W8:Y8)+1>$P$8,"",MAX($W8:Y8)+1)) -> 3 | AA8: =IF(OR($P$6="",$P$6=0,$P$7="",$P$7=0,$P$8="",$P$7<1),"", IF(MAX($W8:Z8)+1>$P$8,"",MAX($W8:Z8)+1)) -> 4 | AB8: =IF(OR($P$6="",$P$6=0,$P$7="",$P$7=0,$P$8="",$P$7<1),"", IF(MAX($W8:AA8)+1>$P$8,"",MAX($W8:AA8)+1)) -> 5 | AC8: =IF(OR($P$6="",$P$6=0,$P$7="",$P$7=0,$P$8="",$P$7<1),"", IF(MAX($W8:AB8)+1>$P$8,"",MAX($W8:AB8)+1)) -> 6 | AD8: =IF(OR($P$6="",$P$6=0,$P$7="",$P$7=0,$P$8="",$P$7<1),"", IF(MAX($W8:AC8)+1>$P$8,"",MAX($W8:AC8)+1)) -> 7 | AE8: =IF(OR($P$6="",$P$6=0,$P$7="",$P$7=0,$P$8="",$P$7<1),"", IF(MAX($W8:AD8)+1>$P$8,"",MAX($W8:AD8)+1)) -> 8 | AF8: =IF(OR($P$6="",$P$6=0,$P$7="",$P$7=0,$P$8="",$P$7<1),"", IF(MAX($W8:AE8)+1>$P$8,"",MAX($W8:AE8)+1)) -> 9 | AG8: =IF(OR($P$6="",$P$6=0,$P$7="",$P$7=0,$P$8="",$P$7<1),"", IF(MAX($W8:AF8)+1>$P$8,"",MAX($W8:AF8)+1)) -> 10 | AH8: =IF(OR($P$6="",$P$6=0,$P$7="",$P$7=0,$P$8="",$P$7<1),"", IF(MAX($W8:AG8)+1>$P$8,"",MAX($W8:AG8)+1)) -> 11 | AI8: =IF(OR($P$6="",$P$6=0,$P$7="",$P$7=0,$P$8="",$P$7<1),"", IF(MAX($W8:AH8)+1>$P$8,"",MAX($W8:AH8)+1)) -> 12 | AJ8: =IF(OR($P$6="",$P$6=0,$P$7="",$P$7=0,$P$8="",$P$7<1),"", IF(MAX($W8:AI8)+1>$P$8,"",MAX($W8:AI8)+1)) -> 13 | AK8: =IF(OR($P$6="",$P$6=0,$P$7="",$P$7=0,$P$8="",$P$7<1),"", IF(MAX($W8:AJ8)+1>$P$8,"",MAX($W8:AJ8)+1)) -> 14 | AL8: =IF(OR($P$6="",$P$6=0,$P$7="",$P$7=0,$P$8="",$P$7<1),"", IF(MAX($W8:AK8)+1>$P$8,"",MAX($W8:AK8)+1)) -> 15 | AM8: =IF(OR($P$6="",$P$6=0,$P$7="",$P$7=0,$P$8="",$P$7<1),"", IF(MAX($W8:AL8)+1>$P$8,"",MAX($W8:AL8)+1)) -> 16 | AN8: =IF(OR($P$6="",$P$6=0,$P$7="",$P$7=0,$P$8="",$P$7<1),"", IF(MAX($W8:AM8)+1>$P$8,"",MAX($W8:AM8)+1)) -> 17 | AO8: =IF(OR($P$6="",$P$6=0,$P$7="",$P$7=0,$P$8="",$P$7<1),"", IF(MAX($W8:AN8)+1>$P$8,"",MAX($W8:AN8)+1)) -> 18 | AP8: =IF(OR($P$6="",$P$6=0,$P$7="",$P$7=0,$P$8="",$P$7<1),"", IF(MAX($W8:AO8)+1>$P$8,"",MAX($W8:AO8)+1)) -> 19 | AQ8: =IF(OR($P$6="",$P$6=0,$P$7="",$P$7=0,$P$8="",$P$7<1),"", IF(MAX($W8:AP8)+1>$P$8,"",MAX($W8:AP8)+1)) -> 20 | AR8: =IF(OR($P$6="",$P$6=0,$P$7="",$P$7=0,$P$8="",$P$7<1),"", IF(MAX($W8:AQ8)+1>$P$8,"",MAX($W8:AQ8)+1)) -> 21 | AS8: =IF(OR($P$6="",$P$6=0,$P$7="",$P$7=0,$P$8="",$P$7<1),"", IF(MAX($W8:AR8)+1>$P$8,"",MAX($W8:AR8)+1)) -> 22 | AT8: =IF(OR($P$6="",$P$6=0,$P$7="",$P$7=0,$P$8="",$P$7<1),"", IF(MAX($W8:AS8)+1>$P$8,"",MAX($W8:AS8)+1)) -> 23 | AU8: =IF(OR($P$6="",$P$6=0,$P$7="",$P$7=0,$P$8="",$P$7<1),"", IF(MAX($W8:AT8)+1>$P$8,"",MAX($W8:AT8)+1)) -> 24 | AV8: =IF(OR($P$6="",$P$6=0,$P$7="",$P$7=0,$P$8="",$P$7<1),"", IF(MAX($W8:AU8)+1>$P$8,"",MAX($W8:AU8)+1)) ->  | AW8: =IF(OR($P$6="",$P$6=0,$P$7="",$P$7=0,$P$8="",$P$7<1),"", IF(MAX($W8:AV8)+1>$P$8,"",MAX($W8:AV8)+1)) ->  | AX8: =IF(OR($P$6="",$P$6=0,$P$7="",$P$7=0,$P$8="",$P$7<1),"", IF(MAX($W8:AW8)+1>$P$8,"",MAX($W8:AW8)+1)) ->  | AY8: =IF(OR($P$6="",$P$6=0,$P$7="",$P$7=0,$P$8="",$P$7<1),"", IF(MAX($W8:AX8)+1>$P$8,"",MAX($W8:AX8)+1)) ->  | AZ8: =IF(OR($P$6="",$P$6=0,$P$7="",$P$7=0,$P$8="",$P$7<1),"", IF(MAX($W8:AY8)+1>$P$8,"",MAX($W8:AY8)+1)) ->  | BA8: =IF(OR($P$6="",$P$6=0,$P$7="",$P$7=0,$P$8="",$P$7<1),"", IF(MAX($W8:AZ8)+1>$P$8,"",MAX($W8:AZ8)+1)) ->  | BB8: =IF(OR($P$6="",$P$6=0,$P$7="",$P$7=0,$P$8="",$P$7<1),"", IF(MAX($W8:BA8)+1>$P$8,"",MAX($W8:BA8)+1)) -> 
B9: =ROW() -> 9
B10: =ROW() -> 10 | O10: название сохраняемого сценария:
B11: =ROW() -> 11 | H11: =Lists!$S$10 -> доход | M11: =Lists!$S$25 -> руб. | U11: =SUM(INDIRECT(ADDRESS($B11,X$2)&":"&ADDRESS($B11,MAX($2:$2)))) -> 16200000 | X11: =IF(X$4="",0,IF(X$8=1,$P12,W11+$P13)) -> 100000 | Y11: =IF(Y$4="",0,IF(Y$8=1,$P12,X11+$P13)) -> 150000 | Z11: 200000 | AA11: 250000 | AB11: 300000 | AC11: 350000 | AD11: 400000 | AE11: =IF(AE$4="",0,IF(AE$8=1,$P12,AD11+$P13)) -> 450000 | AF11: =IF(AF$4="",0,IF(AF$8=1,$P12,AE11+$P13)) -> 500000 | AG11: =IF(AG$4="",0,IF(AG$8=1,$P12,AF11+$P13)) -> 550000 | AH11: =IF(AH$4="",0,IF(AH$8=1,$P12,AG11+$P13)) -> 600000 | AI11: =IF(AI$4="",0,IF(AI$8=1,$P12,AH11+$P13)) -> 650000 | AJ11: =IF(AJ$4="",0,IF(AJ$8=1,$P12,AI11+$P13)) -> 700000 | AK11: =IF(AK$4="",0,IF(AK$8=1,$P12,AJ11+$P13)) -> 750000 | AL11: =IF(AL$4="",0,IF(AL$8=1,$P12,AK11+$P13)) -> 800000 | AM11: =IF(AM$4="",0,IF(AM$8=1,$P12,AL11+$P13)) -> 850000 | AN11: =IF(AN$4="",0,IF(AN$8=1,$P12,AM11+$P13)) -> 900000 | AO11: =IF(AO$4="",0,IF(AO$8=1,$P12,AN11+$P13)) -> 950000 | AP11: =IF(AP$4="",0,IF(AP$8=1,$P12,AO11+$P13)) -> 1000000 | AQ11: =IF(AQ$4="",0,IF(AQ$8=1,$P12,AP11+$P13)) -> 1050000 | AR11: =IF(AR$4="",0,IF(AR$8=1,$P12,AQ11+$P13)) -> 1100000 | AS11: =IF(AS$4="",0,IF(AS$8=1,$P12,AR11+$P13)) -> 1150000 | AT11: =IF(AT$4="",0,IF(AT$8=1,$P12,AS11+$P13)) -> 1200000 | AU11: =IF(AU$4="",0,IF(AU$8=1,$P12,AT11+$P13)) -> 1250000 | AV11: =IF(AV$4="",0,IF(AV$8=1,$P12,AU11+$P13)) -> 0 | AW11: =IF(AW$4="",0,IF(AW$8=1,$P12,AV11+$P13)) -> 0 | AX11: =IF(AX$4="",0,IF(AX$8=1,$P12,AW11+$P13)) -> 0 | AY11: =IF(AY$4="",0,IF(AY$8=1,$P12,AX11+$P13)) -> 0 | AZ11: =IF(AZ$4="",0,IF(AZ$8=1,$P12,AY11+$P13)) -> 0 | BA11: =IF(BA$4="",0,IF(BA$8=1,$P12,AZ11+$P13)) -> 0 | BB11: =IF(BB$4="",0,IF(BB$8=1,$P12,BA11+$P13)) -> 0
B12: =ROW() -> 12 | H12: =H11 -> доход | I12: =Lists!$S$11 -> размер дохода в начальный период | M12: =Lists!$S$25 -> руб. | O12: * | P12: 100000
B13: =ROW() -> 13 | H13: =H11 -> доход | I13: =Lists!$S$12 -> прирост дохода период-к-периоду | M13: =Lists!$S$25 -> руб. | O13: * | P13: 50000
B14: =ROW() -> 14
B15: =ROW() -> 15 | H15: =Lists!$S$13 -> себестоимость | U15: =SUM(INDIRECT(ADDRESS($B15,X$2)&":"&ADDRESS($B15,MAX($2:$2)))) -> 10530000 | X15: =IF(X$4="",0,X$11*(1-$P16)) -> 65000 | Y15: =IF(Y$4="",0,Y$11*(1-$P16)) -> 97500 | Z15: 130000 | AA15: 162500 | AB15: 195000 | AC15: 227500 | AD15: 260000 | AE15: =IF(AE$4="",0,AE$11*(1-$P16)) -> 292500 | AF15: =IF(AF$4="",0,AF$11*(1-$P16)) -> 325000 | AG15: =IF(AG$4="",0,AG$11*(1-$P16)) -> 357500 | AH15: =IF(AH$4="",0,AH$11*(1-$P16)) -> 390000 | AI15: =IF(AI$4="",0,AI$11*(1-$P16)) -> 422500 | AJ15: =IF(AJ$4="",0,AJ$11*(1-$P16)) -> 455000 | AK15: =IF(AK$4="",0,AK$11*(1-$P16)) -> 487500 | AL15: =IF(AL$4="",0,AL$11*(1-$P16)) -> 520000 | AM15: =IF(AM$4="",0,AM$11*(1-$P16)) -> 552500 | AN15: =IF(AN$4="",0,AN$11*(1-$P16)) -> 585000 | AO15: =IF(AO$4="",0,AO$11*(1-$P16)) -> 617500 | AP15: =IF(AP$4="",0,AP$11*(1-$P16)) -> 650000 | AQ15: =IF(AQ$4="",0,AQ$11*(1-$P16)) -> 682500 | AR15: =IF(AR$4="",0,AR$11*(1-$P16)) -> 715000 | AS15: =IF(AS$4="",0,AS$11*(1-$P16)) -> 747500 | AT15: =IF(AT$4="",0,AT$11*(1-$P16)) -> 780000 | AU15: =IF(AU$4="",0,AU$11*(1-$P16)) -> 812500 | AV15: =IF(AV$4="",0,AV$11*(1-$P16)) -> 0 | AW15: =IF(AW$4="",0,AW$11*(1-$P16)) -> 0 | AX15: =IF(AX$4="",0,AX$11*(1-$P16)) -> 0 | AY15: =IF(AY$4="",0,AY$11*(1-$P16)) -> 0 | AZ15: =IF(AZ$4="",0,AZ$11*(1-$P16)) -> 0 | BA15: =IF(BA$4="",0,BA$11*(1-$P16)) -> 0 | BB15: =IF(BB$4="",0,BB$11*(1-$P16)) -> 0
B16: =ROW() -> 16 | H16: =H15 -> себестоимость | I16: =Lists!$S$14 -> рентабельность продаж | M16: % | O16: * | P16: 0.35
B17: =ROW() -> 17
B18: =ROW() -> 18 | H18: =Lists!$S$15 -> чистый доход | M18: =Lists!$S$25 -> руб. | U18: =SUM(INDIRECT(ADDRESS($B18,X$2)&":"&ADDRESS($B18,MAX($2:$2)))) -> 5670000 | X18: =IF(X$4="",0,X11-X15) -> 35000 | Y18: =IF(Y$4="",0,Y11-Y15) -> 52500 | Z18: 70000 | AA18: 87500 | AB18: 105000 | AC18: 122500 | AD18: 140000 | AE18: =IF(AE$4="",0,AE11-AE15) -> 157500 | AF18: 175000 | AG18: 192500 | AH18: 210000 | AI18: 227500 | AJ18: 245000 | AK18: 262500 | AL18: 280000 | AM18: 297500 | AN18: 315000 | AO18: 332500 | AP18: 350000 | AQ18: 367500 | AR18: 385000 | AS18: 402500 | AT18: 420000 | AU18: 437500 | AV18: 0 | AW18: 0 | AX18: 0 | AY18: 0 | AZ18: 0 | BA18: 0 | BB18: 0
B19: =ROW() -> 19
B20: =ROW() -> 20 | H20: =Lists!$S$17 -> переменные расходы | U20: =SUM(INDIRECT(ADDRESS($B20,X$2)&":"&ADDRESS($B20,MAX($2:$2)))) -> 1620000 | X20: =IF(X$4="",0,X$11*$P21) -> 10000 | Y20: =IF(Y$4="",0,Y$11*$P21) -> 15000 | Z20: 20000 | AA20: 25000 | AB20: 30000 | AC20: 35000 | AD20: 40000 | AE20: =IF(AE$4="",0,AE$11*$P21) -> 45000 | AF20: =IF(AF$4="",0,AF$11*$P21) -> 50000 | AG20: =IF(AG$4="",0,AG$11*$P21) -> 55000 | AH20: =IF(AH$4="",0,AH$11*$P21) -> 60000 | AI20: =IF(AI$4="",0,AI$11*$P21) -> 65000 | AJ20: =IF(AJ$4="",0,AJ$11*$P21) -> 70000 | AK20: =IF(AK$4="",0,AK$11*$P21) -> 75000 | AL20: =IF(AL$4="",0,AL$11*$P21) -> 80000 | AM20: =IF(AM$4="",0,AM$11*$P21) -> 85000 | AN20: =IF(AN$4="",0,AN$11*$P21) -> 90000 | AO20: =IF(AO$4="",0,AO$11*$P21) -> 95000 | AP20: =IF(AP$4="",0,AP$11*$P21) -> 100000 | AQ20: =IF(AQ$4="",0,AQ$11*$P21) -> 105000 | AR20: =IF(AR$4="",0,AR$11*$P21) -> 110000 | AS20: =IF(AS$4="",0,AS$11*$P21) -> 115000 | AT20: =IF(AT$4="",0,AT$11*$P21) -> 120000 | AU20: =IF(AU$4="",0,AU$11*$P21) -> 125000 | AV20: =IF(AV$4="",0,AV$11*$P21) -> 0 | AW20: =IF(AW$4="",0,AW$11*$P21) -> 0 | AX20: =IF(AX$4="",0,AX$11*$P21) -> 0 | AY20: =IF(AY$4="",0,AY$11*$P21) -> 0 | AZ20: =IF(AZ$4="",0,AZ$11*$P21) -> 0 | BA20: =IF(BA$4="",0,BA$11*$P21) -> 0 | BB20: =IF(BB$4="",0,BB$11*$P21) -> 0
B21: =ROW() -> 21 | H21: =H20 -> переменные расходы | I21: =Lists!$W$16 -> % от дохода | M21: % | O21: * | P21: 0.1
B22: =ROW() -> 22
B23: =ROW() -> 23 | H23: =Lists!$S$19 -> маржинальная прибыль | M23: =Lists!$S$25 -> руб. | U23: =SUM(INDIRECT(ADDRESS($B23,X$2)&":"&ADDRESS($B23,MAX($2:$2)))) -> 4050000 | X23: =IF(X$4="",0,X18-X20) -> 25000 | Y23: =IF(Y$4="",0,Y18-Y20) -> 37500 | Z23: 50000 | AA23: 62500 | AB23: 75000 | AC23: 87500 | AD23: 100000 | AE23: =IF(AE$4="",0,AE18-AE20) -> 112500 | AF23: 125000 | AG23: 137500 | AH23: 150000 | AI23: 162500 | AJ23: 175000 | AK23: 187500 | AL23: 200000 | AM23: 212500 | AN23: 225000 | AO23: 237500 | AP23: 250000 | AQ23: 262500 | AR23: 275000 | AS23: 287500 | AT23: 300000 | AU23: 312500 | AV23: 0 | AW23: 0 | AX23: 0 | AY23: 0 | AZ23: 0 | BA23: 0 | BB23: 0
B24: =ROW() -> 24
B25: =ROW() -> 25 | H25: =Lists!$S$21 -> постоянные расходы | M25: =Lists!$S$25 -> руб. | U25: =SUM(INDIRECT(ADDRESS($B25,X$2)&":"&ADDRESS($B25,MAX($2:$2)))) -> 2400000 | X25: =IF(X$4="",0,$P26*((12*(YEAR(X$7)-1)+MONTH(X$7))-(12*(YEAR(X$6)-1)+MONTH(X$6))+1)) -> 100000 | Y25: =IF(Y$4="",0,$P26*((12*(YEAR(Y$7)-1)+MONTH(Y$7))-(12*(YEAR(Y$6)-1)+MONTH(Y$6))+1)) -> 100000 | Z25: 100000 | AA25: 100000 | AB25: 100000 | AC25: 100000 | AD25: 100000 | AE25: 100000 | AF25: 100000 | AG25: 100000 | AH25: 100000 | AI25: 100000 | AJ25: 100000 | AK25: 100000 | AL25: 100000 | AM25: 100000 | AN25: 100000 | AO25: 100000 | AP25: 100000 | AQ25: 100000 | AR25: 100000 | AS25: 100000 | AT25: 100000 | AU25: 100000 | AV25: 0 | AW25: 0 | AX25: 0 | AY25: 0 | AZ25: 0 | BA25: 0 | BB25: 0
B26: =ROW() -> 26 | H26: =H25 -> постоянные расходы | I26: =Lists!$S$18 -> размер расхода в месяц | M26: =Lists!$S$25 -> руб. | O26: * | P26: 100000
B27: =ROW() -> 27
B28: =ROW() -> 28 | H28: =Lists!$S$23 -> EBITDA | M28: =Lists!$S$25 -> руб. | U28: =SUM(INDIRECT(ADDRESS($B28,X$2)&":"&ADDRESS($B28,MAX($2:$2)))) -> 1650000 | X28: =IF(X$4="",0,X23-X25) -> -75000 | Y28: =IF(Y$4="",0,Y23-Y25) -> -62500 | Z28: -50000 | AA28: -37500 | AB28: -25000 | AC28: -12500 | AD28: 0 | AE28: =IF(AE$4="",0,AE23-AE25) -> 12500 | AF28: 25000 | AG28: 37500 | AH28: 50000 | AI28: 62500 | AJ28: 75000 | AK28: 87500 | AL28: 100000 | AM28: 112500 | AN28: 125000 | AO28: 137500 | AP28: 150000 | AQ28: 162500 | AR28: 175000 | AS28: 187500 | AT28: 200000 | AU28: 212500 | AV28: 0 | AW28: 0 | AX28: 0 | AY28: 0 | AZ28: 0 | BA28: 0 | BB28: 0
B29: =ROW() -> 29
B30: =ROW() -> 30
B31: =ROW() -> 31
B32: =ROW() -> 32
B33: =ROW() -> 33
B34: =ROW() -> 34
B35: =ROW() -> 35
B36: =ROW() -> 36
B37: =ROW() -> 37
B38: =ROW() -> 38
B39: =ROW() -> 39
B40: =ROW() -> 40
B41: =ROW() -> 41
B42: =ROW() -> 42
B43: =ROW() -> 43
B44: =ROW() -> 44
B45: =ROW() -> 45
B46: =ROW() -> 46
B47: =ROW() -> 47

Sheet SCENARIOS
B4: № | C4: параметр (вводные данные) | E4: сценарии: | F4: текущий сценарий
B5: 1 | C5: =Model!I12 -> размер дохода в начальный период | F5: =Model!$P$12 -> 100000
B6: 2 | C6: =Model!I13 -> прирост дохода период-к-периоду | F6: =Model!$P$13 -> 50000
B7: 3 | C7: =Model!I16 -> рентабельность продаж | F7: =Model!$P$16 -> 0.35
B8: 4 | C8: =Model!I21 -> % от дохода | F8: =Model!$P$21 -> 0.1
B9: 5 | C9: =Model!I26 -> размер расхода в месяц | F9: =Model!$P$26 -> 100000
C11: результаты
C12: =Model!H11 -> доход | F12: =Model!$U$11 -> 16200000
C13: =Model!H28 -> EBITDA | F13: =Model!$U$28 -> 1650000

Sheet Lists
I1: =COLUMN() -> 9 | N1: =COLUMN() -> 14 | S1: =COLUMN() -> 19 | W1: =COLUMN() -> 23 | AA1: =COLUMN() -> 27
I2: =LEFT(ADDRESS(1,I1,4),(LEN(ADDRESS(1,I1,4))-1)) -> I | N2: =LEFT(ADDRESS(1,N1,4),(LEN(ADDRESS(1,N1,4))-1)) -> N | S2: =LEFT(ADDRESS(1,S1,4),(LEN(ADDRESS(1,S1,4))-1)) -> S | W2: =LEFT(ADDRESS(1,W1,4),(LEN(ADDRESS(1,W1,4))-1)) -> W | AA2: =LEFT(ADDRESS(1,AA1,4),(LEN(ADDRESS(1,AA1,4))-1)) -> AA
I4: =$S$26 -> минимальный период расчетов | N4: =$S$27 -> старт моделирования | S4: названия | W4: названия на русском | AA4: названия на английском
A5: =ROW() -> 5 | I5: ="Lists!"&I$2&$A6&":"&I$2&($A5+MAX(J:J)) -> Lists!I6:I9 | N5: ="Lists!"&N$2&$A6&":"&N$2&($A5+MAX(O:O)) -> Lists!N6:N29 | S5: ="Lists!"&S$2&$A6&":"&S$2&($A5+MAX(T:T)) -> Lists!S6:S27 | W5: ="Lists!"&W$2&$A6&":"&W$2&($A5+MAX(X:X)) -> Lists!W6:W27 | AA5: ="Lists!"&AA$2&$A6&":"&AA$2&($A5+MAX(AB:AB)) -> Lists!AA6:AA27
A6: =ROW() -> 6 | H6: * | I6: месяц | J6: =MAX(J$5:J5)+1 -> 1 | K6: =IF(AND(I6="",J6<>0),1,IF(COUNTIF(I:I,I6)<>1,1,0)) -> 0 | M6: * | N6: =EOMONTH(TODAY(),0)+1 -> 2022-01-01 | O6: =MAX(O$5:O5)+1 -> 1 | P6: =IF(AND(N6="",O6<>0),1,IF(COUNTIF(N:N,N6)<>1,1,0)) -> 0 | S6: =IF(Model!$E$4=1,Lists!$AA6,Lists!$W6) -> показатель | T6: =MAX(T$5:T5)+1 -> 1 | U6: =IF(AND(S6="",T6<>0),1,IF(COUNTIF(S:S,S6)<>1,1,0)) -> 0 | V6: * | W6: показатель | X6: =MAX(X$5:X5)+1 -> 1 | Y6: =IF(AND(W6="",X6<>0),1,IF(COUNTIF(W:W,W6)<>1,1,0)) -> 0 | Z6: * | AA6: indicator | AB6: =MAX(AB$5:AB5)+1 -> 1 | AC6: =IF(AND(AA6="",AB6<>0),1,IF(COUNTIF(AA:AA,AA6)<>1,1,0)) -> 0
A7: =ROW() -> 7 | H7: * | I7: квартал | J7: =MAX(J$5:J6)+1 -> 2 | K7: =IF(AND(I7="",J7<>0),1,IF(COUNTIF(I:I,I7)<>1,1,0)) -> 0 | N7: =EOMONTH(N6,0)+1 -> 2022-02-01 | O7: =MAX(O$5:O6)+1 -> 2 | P7: 0 | S7: =IF(Model!$E$4=1,Lists!$AA7,Lists!$W7) -> ед.изм. | T7: =MAX(T$5:T6)+1 -> 2 | U7: =IF(AND(S7="",T7<>0),1,IF(COUNTIF(S:S,S7)<>1,1,0)) -> 0 | V7: * | W7: ед.изм. | X7: =MAX(X$5:X6)+1 -> 2 | Y7: =IF(AND(W7="",X7<>0),1,IF(COUNTIF(W:W,W7)<>1,1,0)) -> 0 | Z7: * | AA7: unit change | AB7: =MAX(AB$5:AB6)+1 -> 2 | AC7: =IF(AND(AA7="",AB7<>0),1,IF(COUNTIF(AA:AA,AA7)<>1,1,0)) -> 0
A8: =ROW() -> 8 | H8: * | I8: год текущий | J8: =MAX(J$5:J7)+1 -> 3 | K8: =IF(AND(I8="",J8<>0),1,IF(COUNTIF(I:I,I8)<>1,1,0)) -> 0 | N8: =EOMONTH(N7,0)+1 -> 2022-03-01 | O8: =MAX(O$5:O7)+1 -> 3 | P8: 0 | S8: =IF(Model!$E$4=1,Lists!$AA8,Lists!$W8) -> значение | T8: =MAX(T$5:T7)+1 -> 3 | U8: =IF(AND(S8="",T8<>0),1,IF(COUNTIF(S:S,S8)<>1,1,0)) -> 0 | V8: * | W8: значение | X8: =MAX(X$5:X7)+1 -> 3 | Y8: =IF(AND(W8="",X8<>0),1,IF(COUNTIF(W:W,W8)<>1,1,0)) -> 0 | Z8: * | AA8: value | AB8: =MAX(AB$5:AB7)+1 -> 3 | AC8: =IF(AND(AA8="",AB8<>0),1,IF(COUNTIF(AA:AA,AA8)<>1,1,0)) -> 0
A9: =ROW() -> 9 | H9: * | I9: год календарный | J9: =MAX(J$5:J8)+1 -> 4 | K9: =IF(AND(I9="",J9<>0),1,IF(COUNTIF(I:I,I9)<>1,1,0)) -> 0 | N9: 2022-04-01 | O9: =MAX(O$5:O8)+1 -> 4 | P9: 0 | S9: =IF(Model!$E$4=1,Lists!$AA9,Lists!$W9) -> итого | T9: =MAX(T$5:T8)+1 -> 4 | U9: =IF(AND(S9="",T9<>0),1,IF(COUNTIF(S:S,S9)<>1,1,0)) -> 0 | V9: * | W9: итого | X9: =MAX(X$5:X8)+1 -> 4 | Y9: =IF(AND(W9="",X9<>0),1,IF(COUNTIF(W:W,W9)<>1,1,0)) -> 0 | Z9: * | AA9: total | AB9: =MAX(AB$5:AB8)+1 -> 4 | AC9: =IF(AND(AA9="",AB9<>0),1,IF(COUNTIF(AA:AA,AA9)<>1,1,0)) -> 0
A10: =ROW() -> 10 | N10: 2022-05-01 | O10: =MAX(O$5:O9)+1 -> 5 | P10: 0 | S10: =IF(Model!$E$4=1,Lists!$AA10,Lists!$W10) -> доход | T10: =MAX(T$5:T9)+1 -> 5 | U10: =IF(AND(S10="",T10<>0),1,IF(COUNTIF(S:S,S10)<>1,1,0)) -> 0 | V10: * | W10: доход | X10: =MAX(X$5:X9)+1 -> 5 | Y10: =IF(AND(W10="",X10<>0),1,IF(COUNTIF(W:W,W10)<>1,1,0)) -> 0 | Z10: * | AA10: income | AB10: =MAX(AB$5:AB9)+1 -> 5 | AC10: =IF(AND(AA10="",AB10<>0),1,IF(COUNTIF(AA:AA,AA10)<>1,1,0)) -> 0
A11: =ROW() -> 11 | N11: 2022-06-01 | O11: =MAX(O$5:O10)+1 -> 6 | P11: 0 | S11: =IF(Model!$E$4=1,Lists!$AA11,Lists!$W11) -> размер дохода в начальный период | T11: =MAX(T$5:T10)+1 -> 6 | U11: 0 | V11: * | W11: размер дохода в начальный период | X11: =MAX(X$5:X10)+1 -> 6 | Y11: 0 | Z11: * | AA11: amount of income in the initial period income | AB11: =MAX(AB$5:AB10)+1 -> 6 | AC11: 0
A12: =ROW() -> 12 | N12: 2022-07-01 | O12: =MAX(O$5:O11)+1 -> 7 | P12: 0 | S12: =IF(Model!$E$4=1,Lists!$AA12,Lists!$W12) -> прирост дохода период-к-периоду | T12: =MAX(T$5:T11)+1 -> 7 | U12: 0 | V12: * | W12: прирост дохода период-к-периоду | X12: =MAX(X$5:X11)+1 -> 7 | Y12: 0 | Z12: * | AA12: growth period-to-period | AB12: =MAX(AB$5:AB11)+1 -> 7 | AC12: 0
A13: =ROW() -> 13 | N13: 2022-08-01 | O13: =MAX(O$5:O12)+1 -> 8 | P13: 0 | S13: =IF(Model!$E$4=1,Lists!$AA13,Lists!$W13) -> себестоимость | T13: =MAX(T$5:T12)+1 -> 8 | U13: 0 | V13: * | W13: себестоимость | X13: =MAX(X$5:X12)+1 -> 8 | Y13: 0 | Z13: * | AA13: cost of sales | AB13: =MAX(AB$5:AB12)+1 -> 8 | AC13: 0
A14: =ROW() -> 14 | N14: 2022-09-01 | O14: =MAX(O$5:O13)+1 -> 9 | P14: 0 | S14: =IF(Model!$E$4=1,Lists!$AA14,Lists!$W14) -> рентабельность продаж | T14: =MAX(T$5:T13)+1 -> 9 | U14: 0 | V14: * | W14: рентабельность продаж | X14: =MAX(X$5:X13)+1 -> 9 | Y14: 0 | Z14: * | AA14: return on sales | AB14: =MAX(AB$5:AB13)+1 -> 9 | AC14: 0
A15: =ROW() -> 15 | N15: 2022-10-01 | O15: =MAX(O$5:O14)+1 -> 10 | P15: 0 | S15: =IF(Model!$E$4=1,Lists!$AA15,Lists!$W15) -> чистый доход | T15: =MAX(T$5:T14)+1 -> 10 | U15: 0 | V15: * | W15: чистый доход | X15: =MAX(X$5:X14)+1 -> 10 | Y15: 0 | Z15: * | AA15: net income | AB15: =MAX(AB$5:AB14)+1 -> 10 | AC15: 0
A16: =ROW() -> 16 | N16: 2022-11-01 | O16: =MAX(O$5:O15)+1 -> 11 | P16: 0 | S16: =IF(Model!$E$4=1,Lists!$AA16,Lists!$W16) -> % от дохода | T16: =MAX(T$5:T15)+1 -> 11 | U16: 0 | V16: * | W16: % от дохода | X16: =MAX(X$5:X15)+1 -> 11 | Y16: 0 | Z16: * | AA16: % of income | AB16: =MAX(AB$5:AB15)+1 -> 11 | AC16: 0
A17: =ROW() -> 17 | N17: 2022-12-01 | O17: =MAX(O$5:O16)+1 -> 12 | P17: 0 | S17: =IF(Model!$E$4=1,Lists!$AA17,Lists!$W17) -> переменные расходы | T17: =MAX(T$5:T16)+1 -> 12 | U17: 0 | V17: * | W17: переменные расходы | X17: =MAX(X$5:X16)+1 -> 12 | Y17: 0 | Z17: * | AA17: variable expenses | AB17: =MAX(AB$5:AB16)+1 -> 12 | AC17: 0
A18: =ROW() -> 18 | N18: =EOMONTH(N17,0)+1 -> 2023-01-01 | O18: =MAX(O$5:O17)+1 -> 13 | P18: 0 | S18: =IF(Model!$E$4=1,Lists!$AA18,Lists!$W18) -> размер расхода в месяц | T18: =MAX(T$5:T17)+1 -> 13 | U18: 0 | V18: * | W18: размер расхода в месяц | X18: =MAX(X$5:X17)+1 -> 13 | Y18: 0 | Z18: * | AA18: monthly expense amount | AB18: =MAX(AB$5:AB17)+1 -> 13 | AC18: 0
A19: =ROW() -> 19 | N19: 2023-02-01 | O19: =MAX(O$5:O18)+1 -> 14 | P19: 0 | S19: =IF(Model!$E$4=1,Lists!$AA19,Lists!$W19) -> маржинальная прибыль | T19: =MAX(T$5:T18)+1 -> 14 | U19: 0 | V19: * | W19: маржинальная прибыль | X19: =MAX(X$5:X18)+1 -> 14 | Y19: 0 | Z19: * | AA19: marginal profit | AB19: =MAX(AB$5:AB18)+1 -> 14 | AC19: 0
A20: =ROW() -> 20 | N20: 2023-03-01 | O20: =MAX(O$5:O19)+1 -> 15 | P20: 0 | S20: =IF(Model!$E$4=1,Lists!$AA20,Lists!$W20) -> тип периода | T20: =MAX(T$5:T19)+1 -> 15 | U20: 0 | V20: * | W20: тип периода | X20: =MAX(X$5:X19)+1 -> 15 | Y20: 0 | Z20: * | AA20: period type | AB20: =MAX(AB$5:AB19)+1 -> 15 | AC20: 0
A21: =ROW() -> 21 | N21: 2023-04-01 | O21: =MAX(O$5:O20)+1 -> 16 | P21: 0 | S21: =IF(Model!$E$4=1,Lists!$AA21,Lists!$W21) -> постоянные расходы | T21: =MAX(T$5:T20)+1 -> 16 | U21: 0 | V21: * | W21: постоянные расходы | X21: =MAX(X$5:X20)+1 -> 16 | Y21: 0 | Z21: * | AA21: fixed expenses | AB21: =MAX(AB$5:AB20)+1 -> 16 | AC21: 0
A22: =ROW() -> 22 | N22: 2023-05-01 | O22: =MAX(O$5:O21)+1 -> 17 | P22: 0 | S22: =IF(Model!$E$4=1,Lists!$AA22,Lists!$W22) -> месяц | T22: =MAX(T$5:T21)+1 -> 17 | U22: 0 | V22: * | W22: месяц | X22: =MAX(X$5:X21)+1 -> 17 | Y22: 0 | Z22: * | AA22: month | AB22: =MAX(AB$5:AB21)+1 -> 17 | AC22: 0
A23: =ROW() -> 23 | N23: 2023-06-01 | O23: =MAX(O$5:O22)+1 -> 18 | P23: 0 | S23: =IF(Model!$E$4=1,Lists!$AA23,Lists!$W23) -> EBITDA | T23: =MAX(T$5:T22)+1 -> 18 | U23: 0 | V23: * | W23: EBITDA | X23: =MAX(X$5:X22)+1 -> 18 | Y23: 0 | Z23: * | AA23: EBITDA | AB23: =MAX(AB$5:AB22)+1 -> 18 | AC23: 0
A24: =ROW() -> 24 | N24: 2023-07-01 | O24: =MAX(O$5:O23)+1 -> 19 | P24: 0 | S24: =IF(Model!$E$4=1,Lists!$AA24,Lists!$W24) -> кол-во пер. | T24: =MAX(T$5:T23)+1 -> 19 | U24: 0 | V24: * | W24: кол-во пер. | X24: =MAX(X$5:X23)+1 -> 19 | Y24: 0 | Z24: * | AA24: number of gears. | AB24: =MAX(AB$5:AB23)+1 -> 19 | AC24: 0
A25: =ROW() -> 25 | N25: 2023-08-01 | O25: =MAX(O$5:O24)+1 -> 20 | P25: 0 | S25: =IF(Model!$E$4=1,Lists!$AA25,Lists!$W25) -> руб. | T25: =MAX(T$5:T24)+1 -> 20 | U25: 0 | V25: * | W25: руб. | X25: =MAX(X$5:X24)+1 -> 20 | Y25: 0 | Z25: * | AA25: RUR | AB25: =MAX(AB$5:AB24)+1 -> 20 | AC25: 0
A26: =ROW() -> 26 | N26: 2023-09-01 | O26: =MAX(O$5:O25)+1 -> 21 | P26: 0 | S26: =IF(Model!$E$4=1,Lists!$AA26,Lists!$W26) -> минимальный период расчетов | T26: =MAX(T$5:T25)+1 -> 21 | U26: =IF(AND(S26="",T26<>0),1,IF(COUNTIF(S:S,S26)<>1,1,0)) -> 0 | V26: * | W26: минимальный период расчетов | X26: =MAX(X$5:X25)+1 -> 21 | Y26: =IF(AND(W26="",X26<>0),1,IF(COUNTIF(W:W,W26)<>1,1,0)) -> 0 | Z26: * | AA26: minimum calculation period | AB26: =MAX(AB$5:AB25)+1 -> 21 | AC26: =IF(AND(AA26="",AB26<>0),1,IF(COUNTIF(AA:AA,AA26)<>1,1,0)) -> 0
A27: =ROW() -> 27 | N27: 2023-10-01 | O27: =MAX(O$5:O26)+1 -> 22 | P27: 0 | S27: =IF(Model!$E$4=1,Lists!$AA27,Lists!$W27) -> старт моделирования | T27: =MAX(T$5:T26)+1 -> 22 | U27: 0 | V27: * | W27: старт моделирования | X27: =MAX(X$5:X26)+1 -> 22 | Y27: 0 | Z27: * | AA27: start of simulation | AB27: =MAX(AB$5:AB26)+1 -> 22 | AC27: 0
A28: =ROW() -> 28 | N28: 2023-11-01 | O28: =MAX(O$5:O27)+1 -> 23 | P28: 0
A29: =ROW() -> 29 | N29: =EOMONTH(N28,0)+1 -> 2023-12-01 | O29: =MAX(O$5:O28)+1 -> 24 | P29: 0
A30: =ROW() -> 30
A31: =ROW() -> 31
A32: =ROW() -> 32
A33: =ROW() -> 33
A34: =ROW() -> 34
A35: =ROW() -> 35
A36: =ROW() -> 36
A37: =ROW() -> 37
A38: =ROW() -> 38
A39: =ROW() -> 39
A40: =ROW() -> 40
A41: =ROW() -> 41
A42: =ROW() -> 42
A43: =ROW() -> 43
A44: =ROW() -> 44
A45: =ROW() -> 45
A46: =ROW() -> 46
A47: =ROW() -> 47
